Cogmind - Beta 15 *** ADVENTURER MODE // 2025.06.04 @ 19:42:42 Player: triibiis Result: Destroyed by Z2-VAR(R) with Subdweller Laser Performance ------------- Evolutions (0) 0 Regions Visited (2) 400 Robots Destroyed (21) 105 Value Destroyed (531) 531 Prototype IDs (0) 0 Alien Tech Used (0) 0 Bonus (0) 0 TOTAL SCORE: 1036 Bonus ------- None Cogmind --------- Core Integrity 0/250 Matter 300/300 Energy 100/100 System Corruption 0% Temperature Cool (6) Movement Core (700) Ox13 Location -10/Subcaves Parts ------- > --- POWER (1) -------- (None) > --- PROPULSION (2) --- (None) > --- UTILITY (2) ------ High-capacity Storage Unit Sensor Array > --- WEAPON (2) ------- (None) > --- INVENTORY (20) --- Flight Unit Flight Unit Small Storage Unit ECM Suite ECM Suite ECM Suite ECM Suite Medium Laser Peak State ------------ > --- POWER ------------ Light Ion Engine > --- PROPULSION ------- Light Treads Light Treads > --- UTILITY ---------- High-capacity Storage Unit Sensor Array > --- WEAPON ----------- Small Laser Battle Rifle > --- INVENTORY -------- Flight Unit Flight Unit Small Storage Unit ECM Suite ECM Suite ECM Suite ECM Suite [Rating: 8] Favorites ----------- Power Light Ion Engine Engine Light Ion Engine Propulsion Light Treads Treads Light Treads Wheel Wheel Utility High-capacity Storage Unit Device Sensor Array Storage High-capacity Storage Unit Weapon Medium Laser Energy Gun Medium Laser Ballistic Gun Battle Rifle Launcher Grenade Launcher Build | -11 -10 -10 ------- Run | Yrd Mat Sub Slots Evolved . | . . . Power . | . . . Propulsion . | . . . Utility . | . . . Weapon . | . . . Parts Attached 14 | 7 6 1 Power 2 | 2 . . Engine 2 | 2 . . Core . | . . . Reactor . | . . . Propulsion 4 | 3 1 . Treads 3 | 2 1 . Leg . | . . . Wheel 1 | 1 . . Hover . | . . . Flight . | . . . Utility 4 | . 4 . Device 2 | . 2 . Storage 2 | . 2 . Processor . | . . . Hackware . | . . . Protection . | . . . Artifact . | . . . Weapon 4 | 2 1 1 Energy Gun 2 | 2 . . Energy Cannon . | . . . Ballistic Gun 1 | . . 1 Ballistic Cannon . | . . . Launcher 1 | . 1 . Special Weapon . | . . . Impact Weapon . | . . . Slashing Weapon . | . . . Piercing Weapon . | . . . Special Melee Weapon . | . . . Unidentified Prototypes . | . . . Parts Lost 7 | . 2 5 Power 2 | . 1 1 Propulsion 2 | . . 2 Utility . | . . . Weapon 3 | . 1 2 Highest Loss Streak 5 | . 1 5 To Critical Strikes . | . . . Average Backups 6 | 3 6 7 Power . | . . . Propulsion 1 | 1 1 2 Utility 3 | . 4 5 Weapon . | . . . Tool/Special . | . . . Unused Backups 8 | . 2 6 Power . | . . . Propulsion 4 | . 2 2 Utility 4 | . . 4 Weapon . | . . . Tool/Special . | . . . Average Slot Usage (%) 97 | . 97 96 Engine 13 | . 14 13 Treads 27 | . 28 26 Device 12 | . 11 14 Storage 14 | . 14 14 Energy Gun 19 | . 19 20 Ballistic Gun 1 | . . 7 Launcher 7 | . 8 . Peak Build Rating 8 | 5 7 8 Average Rating 6 | 4 6 7 On Entrance 4 | . 5 7 Naked Turns . | . . . Heaviest Build 52 | 8 52 47 Greatest Support 40 | 40 40 40 Greatest Overweight (x) 1 | 1 1 1 Average Overweight (x) . | . . 1 Largest Inventory Capacity 20 | 5 20 20 Average Capacity 15 | 5 15 20 Most Carried 9 | 5 9 8 Average Carried 6 | 3 6 7 Final Capacity 20 | 5 20 20 Final Carried 8 | 5 7 8 Class Distribution -------------------- 100% | Mutant Dominant Class ---------------- Mutant | -10/Materials Mutant | -10/Subcaves Resources | -11 -10 -10 ----------- Run | Yrd Mat Sub Matter Collected 462 | 199 218 45 Remotely . | . . . Salvage Created 484 | . 409 75 Parts 32 | . 29 3 Haulers Intercepted . | . . . Recyclers Shooed . | . . . Parts Field Recycled . | . . . Retrieved Matter . | . . . Parts Self-Destructed 9 | . . 9 Prevented . | . . . Kills | -11 -10 -10 ------- Run | Yrd Mat Sub Combat Hostiles Destroyed 15 | . 12 3 Guns 10 | . 7 3 AOE 5 | . 5 . Classes Destroyed 5 | . 4 1 Worker 1 | . 1 . Turret 2 | . . 2 Watcher 3 | . 3 . Swarmer 6 | . 3 3 Grunt 9 | . 9 . Best Kill Streak 3 | . 3 2 Combat Bots Only 3 | . 3 2 Max Kills in Single Turn 3 | . 3 1 Gunslinging . | . . . Exploded 2 | . 2 . Melee . | . . . Uniques/NPCs Destroyed . | . . . Combat | -11 -10 -10 -------- Run | Yrd Mat Sub Hostile Shots Fired 163 | . 79 84 Missed 53 | . 27 26 Hits 110 | . 52 58 Projectile 110 | . 52 58 Critical Strikes 1 | . 1 . Damage Taken 1061 | . 438 623 Core 257 | . 87 170 Absorbed by Shields . | . . . Ignored by Resistances 320 | . 139 181 Core Remaining (%) 100 | 100 . . Volleys Fired 58 | 1 37 20 Largest 2 | 2 2 2 Hottest 90 | 90 90 90 Shots Fired 104 | 2 70 32 Gun 95 | 2 61 32 Cannon . | . . . Launcher 9 | . 9 . Special . | . . . Kinetic 7 | . . 7 Thermal 88 | 2 61 25 Explosive 9 | . 9 . Electromagnetic . | . . . Robot Hit Streak 12 | 1 8 12 Robot Miss Streak 5 | 1 3 5 Penetration Max . | . . . Secondary Targets . | . . . Shots Hit Robots 71 | 1 49 21 Core Hits 35 | . 26 9 Critical Kills . | . . . Critical Parts Destroyed . | . . . Critical Strikes 8 | . 6 2 Burn 8 | . 6 2 Melee Attacks . | . . . Impact . | . . . Slashing . | . . . Piercing . | . . . Sneak Attacks . | . . . Combat Hostiles . | . . . Follow-up Attacks . | . . . Damage Inflicted 1236 | 12 966 258 Guns 783 | 12 514 257 Cannons . | . . . Explosions 449 | . 449 . Melee . | . . . Ramming 4 | . 3 1 Kinetic 55 | . . 55 Thermal 728 | 12 514 202 Explosive 449 | . 449 . Electromagnetic . | . . . Impact . | . . . Slashing . | . . . Piercing . | . . . Highest Corruption . | . . . Average Corruption . | . . . Corruption Purged . | . . . Corruption Blocked . | . . . Overload Shots . | . . . Overflow Damage 14 | . 14 . Projectiles . | . . . Explosions 14 | . 14 . Melee . | . . . Knockbacks . | . . . Impact . | . . . Kinetic . | . . . Secondary . | . . . Self-Inflicted Damage 29 | . 29 . Shots 2 | . 2 . Rammed 2 | . 1 1 Targets Rammed 2 | . 1 1 Kicked . | . . . Crushed . | . . . Highest Temperature 327 | 30 327 10 Average Temperature 93 | 18 98 3 Received Heat Transfer 480 | . 240 240 Effects 3 | . 3 . Energy Bleed 1 | . 1 . Damage (minor) 2 | . 2 . Siege Activations . | . . . Martial Activations . | . . . Shielding Activations . | . . . Robots Disrupted . | . . . Combat Hostiles . | . . . Robots Corrupted . | . . . Combat Hostiles . | . . . Parts Fried . | . . . Impact Corruptions . | . . . Robots Melted . | . . . Combat Hostiles . | . . . Parts Melted 5 | . 5 . Heat Transferred 2561 | 37 1855 669 Parts Sabotaged . | . . . Parts Stolen . | . . . Parts Stripped . | . . . Power Chain Reactions . | . . . Alert | -11 -10 -10 ------- Run | Yrd Mat Sub Maximum Alert Level . | . . . Low Security (%) 100 | 100 100 . Level 1 . | . . . Level 2 . | . . . Level 3 . | . . . Level 4 . | . . . Level 5 . | . . . High Security . | . . . Max Security . | . . . Peak Influence 92 | . 92 . Initial . | . . . Average 16 | . 17 . Influence Increases 507 | . 407 100 Destroy 0b10 Robot/C 340 | . 240 100 Destroy 0b10 Robot/NC 20 | . 20 . Destroy Leader 56 | . 56 . Successful Hack 3 | . 3 . Disable Machine 27 | . 27 . Destroy Structure 61 | . 61 . Influence Decreases 507 | . 407 100 Time Decay 487 | . 387 100 Lost Part 20 | . 20 . Squads Dispatched 2 | . 2 . Investigation 2 | . 2 . Extermination . | . . . Reinforcement . | . . . Assault . | . . . Garrison . | . . . Intercept . | . . . Searches Triggered . | . . . Construction Impeded . | . . . Haulers Reinforced . | . . . Active Scanning Responses . | . . . Cargo Convoy Interrupts . | . . . Stealth | -11 -10 -10 --------- Run | Yrd Mat Sub Distress Signals 1 | . 1 . Communications Jammed . | . . . Distress Signals . | . . . Times Spotted 37 | . 18 19 Peak Tracking Total 11 | . 3 11 Tactical Retreats . | . . . Traps | -11 -10 -10 ------- Run | Yrd Mat Sub Traps Triggered 1 | . 1 . Indirectly . | . . . Trap Hack Attempts . | . . . Triggered . | . . . Disarmed . | . . . Reprogrammed . | . . . Reused . | . . . Traps Extracted . | . . . Installed . | . . . Triggered . | . . . Machines | -11 -10 -10 ---------- Run | Yrd Mat Sub Machines Disabled 4 | . 4 . Max in Single Turn 1 | . 1 . Machines Repaired . | . . . Machines Dismantled . | . . . Machines Sabotaged . | . . . Overloaded Fab Kills . | . . . Hacking | -11 -10 -10 --------- Run | Yrd Mat Sub Machines Accessed 2 | . 2 . Terminals 2 | . 2 . Fabricators . | . . . Repair Stations . | . . . Recycling Units . | . . . Scanalyzers . | . . . Garrison Access . | . . . Total Hacks 8 | . 8 . Successful 4 | . 4 . Failed 4 | . 4 . Catastrophic 2 | . 2 . Database Lockouts . | . . . Manual . | . . . Terminals 8 | . 8 . Fabricators . | . . . Repair Stations . | . . . Recycling Units . | . . . Scanalyzers . | . . . Garrison Access . | . . . Terminal Hacks 4 | . 4 . Record 1 | . 1 . Alert Level 1 | . 1 . Locate Traps 1 | . 1 . Security Status 1 | . 1 . Fabricator Hacks . | . . . Repair Station Hacks . | . . . Recycling Unit Hacks . | . . . Scanalyzer . | . . . Garrison Access Hacks . | . . . Unauthorized Hacks . | . . . Terminals . | . . . Fabricators . | . . . Repair Stations . | . . . Recycling Units . | . . . Scanalyzers . | . . . Garrison Access . | . . . Data Cores Recovered . | . . . Used . | . . . Hacking Detections 2 | . 2 . Full Trace Events 2 | . 2 . Feedback Events . | . . . Feedback Blocked . | . . . Robot Schematics Acquired . | . . . Robots Built . | . . . Authchips . | . . . Time . | . . . Total Robot Build Rating . | . . . Part Schematics Acquired . | . . . Parts Built . | . . . Authchips . | . . . Time . | . . . Total Part Build Rating . | . . . Parts Repaired . | . . . Time . | . . . Parts Recycled . | . . . Recycled Matter . | . . . Retrieved Matter . | . . . Retrieved Components . | . . . Parts Scanalyzed . | . . . Part Schematics Acquired . | . . . Parts Damaged . | . . . Bothacking | -11 -10 -10 ------------ Run | Yrd Mat Sub Used RIF Installer . | . . . Robots Hacked . | . . . Non-combat . | . . . Combat . | . . . Robot Hacks Applied . | . . . Relay Couplers Released . | . . . Fabnet Peak Effective % . | . . . Robots Rewired . | . . . Allies Hacked . | . . . Hacks Repelled . | . . . Allies | -11 -10 -10 -------- Run | Yrd Mat Sub Total Allies . | . . . Largest Group . | . . . Highest-Rated Group . | . . . Highest-Rated Ally . | . . . Total Orders . | . . . Ally Attacks . | . . . Total Damage . | . . . Kills . | . . . Allies Corrupted . | . . . Allies Melted . | . . . Intel | -11 -10 -10 ------- Run | Yrd Mat Sub Active Infowar (turns) 1529 | . 1258 271 Sensors 937 | . 666 271 ECM 592 | . 592 . Robot Analysis Total . | . . . Derelict Logs Recovered 1 | . . 1 Drone Launches . | . . . Drone Recoveries . | . . . Exploration | -11 -10 -10 ------------- Run | Yrd Mat Sub Turns Passed 1869 | 132 1466 271 Spaces Moved 811 | 79 643 89 Core 4 | 4 . . Treads 797 | 65 643 89 Legs . | . . . Wheels 10 | 10 . . Hover . | . . . Flight . | . . . Fastest Speed 50 | 50 160 240 Average Speed 205 | 145 208 240 Slowest Speed 240 | 160 240 240 Overloaded Moves . | . . . Propulsion Burnouts . | . . . Robots Hopped . | . . . Potential Cave-ins . | . . . Cave-ins Triggered . | . . . Exploration Rate (%) 24 | 6 60 6 Regions Visited 2 Branch Regions 1 Pre-discovered Areas . | . . . Known Exits Taken . | . . . Unknown Exits Taken 2 | 1 1 . Scrap Searched . | . . . Spaces Dug . | . . . Terrain Destroyed 63 | . 63 . Melee . | . . . Projectile . | . . . AOE 63 | . 63 . Terrain Rammed . | . . . Walls Destroyed . | . . . Machines Disabled . | . . . Actions | -11 -10 -10 --------- Run | Yrd Mat Sub Total 909 | 92 703 114 Wait 1 | . 1 . Move 809 | 78 642 89 Hop . | . . . Pick Up 13 | 3 8 2 Fast Attach 7 | 6 1 . Attach 7 | 1 5 1 Detach 3 | 2 1 . Swap 3 | 1 2 . Drop 6 | . 5 1 Fire 58 | 1 37 20 Melee . | . . . Ram 1 | . . 1 Kick . | . . . Crush 1 | . 1 . Escape Stasis . | . . . Rewire . | . . . Trap . | . . . Miscellaneous . | . . . Route ------- -11/Scrapyard -10/Materials (discovered 5 exits: [*Mat x2] / [*Min x2] / [*Sub]) -10/Subcaves (discovered 1 exit: [*Rec]) History --------- Turn | Location | Event 74 | -11/Scrapyard | Discovered new exit (range 15) 133 | -11/Scrapyard | Entered Materials 239 | -10/Materials | Discovered new exit (range 13) 306 | -10/Materials | Build established: Mutant 433 | -10/Materials | Discovered new exit (range 6) 616 | -10/Materials | Discovered new exit (range 9) 1234 | -10/Materials | Discovered new exit (range 9) 1558 | -10/Materials | Discovered new exit (range 11) 1599 | -10/Materials | Entered Subcaves 1619 | -10/Subcaves | Learned Materials security intel 1717 | -10/Subcaves | Discovered new exit (range 16) 1857 | -10/Subcaves | Ambushed by swarm of Subdwellers 1857 | -10/Subcaves | Ambushed by Subdwellers from Twisted Machinery 1857 | -10/Subcaves | Ambushed by Subdwellers from Twisted Machinery 1858 | -10/Subcaves | Core integrity fell below 50% 1860 | -10/Subcaves | Ambushed by Subdwellers from Twisted Machinery 1860 | -10/Subcaves | Ambushed by Subdwellers from Twisted Machinery 1869 | -10/Subcaves | Core integrity fell below 20% 1870 | -10/Subcaves | Destroyed by Z2-VAR(R) with Subdweller Laser Last Messages --------------- Acquired 3 matter. A mess of Twisted Machinery falls from the cavern ceiling. DU-6NN(R) comes tumbling into view. 67-WFB(R) angrily emerges from the Twisted Machinery. 4D-JKS(R) angrily emerges from the Twisted Machinery. Lgt. Treads destroyed. T4-9FJ(R) emerges from the Twisted Machinery. KP-1C7(R) angrily emerges from the Twisted Machinery. UG-2L5(R) angrily emerges from the Twisted Machinery. Lgt. Ion Engine destroyed. JC-TZR(R) emerges from the Twisted Machinery. Battle Rifle destroyed. Sml. Laser destroyed. Lgt. Treads destroyed. Slammed into Z2-VAR(R). Map ----- +----------------------------------------------------+ | ?????????????????????????????????????????????????? | | ?????????????????????????????????????????????????? | | ?????????????????????????????????????????????????? | | ?????????????????????????????????????????????????? | | ???????????????????????????????????????######????? | | ??????????????????????????????????????##""#<#####? | | ??????????????????????????????????????#" " """#? | | ??????????????????????????????????????# " % "#? | | ??????????????????????????????????????#" % % "#? | | ??????????????????????????????????????# ## | | ??????????????????????????????????????# ## | | ??????????????????????????????????????#" % % "## | | ??????????????????????????????????????####% ##### | | ?????????????????????????????????????????# #??# | | ?????????????????????????????????????????# %%#??# | | ?????????????????????????????????????????# #### | | ?????????????????????????????????????????# ## | | ?????????????????????????????????????????# # # | | ?????????????????????????????????????????# " %# | | ????????????????????????#####??#####???### %" % | | ???????????????????????## #### ###?# " | | ???????????????????????# ### | | ???????????????????????# ## ## | | ???????????????????????# RR ##? | | ???????????????????????# R### ###?? | | ???????????????????????#R@#### ##???? | | ???????????????????????#"RR#?## #????? | | ???????????????????????##RR R####### #????? | | ????????????????????????#RR #?????# ??? | | ????????????????????????# ##?????# ### ? | | ????????????????????????#####??????# #??# | | ???????????????????????????????????# ##??? # | | ?????????????????????????????????? ##????? ## | | ????????????????????????????????? #???????#? | | ???????????????????????????????? #????????? | | ???????????????????????????????? ## ##????????? | | ???????????????????????????????? ?# #?????????? | | ???????????????????????????????????# #?????????? | | ???????????????????????????????????#####?????????? | | ?????????????????????????????????????????????????? | | ?????????????????????????????????????????????????? | | ?????????????????????????????????????????????????? | | ?????????????????????????????????????????????????? | | ?????????????????????????????????????????????????? | | ?????????????????????????????????????????????????? | | ?????????????????????????????????????????????????? | | ?????????????????????????????????????????????????? | | ?????????????????????????????????????????????????? | | ?????????????????????????????????????????????????? | | ?????????????????????????????????????????????????? | +----------------------------------------------------+ Best States ------------- Heat Dissipation 25 Energy Generation 10 Energy Capacity 250 Matter Stores 300 Matter Capacity 300 Sight Range 16 Robot Scan Range 14 Terrain Scan Density 10 ECM Strength 1 Resistance: KI 20 Resistance: TH 20 Resistance: EX 20 Resistance: EM 20 Resistance: I 20 Resistance: S 20 Resistance: P 20 Evasion (%) 40 Recoil Reduction 2 Offensive Hacking 10 Item Schematics ----------------- None Robot Schematics ------------------ None Fabricated ------------ Nothing Repaired ---------- Nothing Alien Tech Used ----------------- None Achievements -------------- None Challenges ------------ None Game ------ Seed DisassembledReflexLance Manual? 0 Play Time 00:12:47 Cumulative 4.5 hours Start 2025.06.04 @ 19:31:47 End 2025.06.04 @ 19:42:42 Sessions 1 Manual Loads 0 Difficulty Adventurer Special Mode None Game No. 8 Rogue 0 Adventurer 8 Explorer 0 Win Type - Total 0 Types 0/0/0/0/0/0/0/0/0/0 Lore% 1 Gallery% 8 Achievement% 9 Wizard Run 0 Options --------- Layout 1 ASCII 0 Keyboard 0 Movement Arrows Keybinds 0 Fullscreen 1 Font 36/Smallcaps Map View 50x43 Zoom Use 0% Tactical HUD 0 Map Filters NONE Filters NONE Steam 1 RUN: 25264009-d52f-4455-babc-773b5a79b0df